Workbook

Sheet Trendy roczne
A1: Tytuł trendów w wydatkach
A2: Miesiąc | B2: Wydatek 1 | C2: Wydatek 2 | D2: Wydatek 3 | E2: Wydatek 4 | F2: Wydatek 5
A3: Sty | B3: =SUBTOTAL(109,Wydatek11[Kwota]) -> 100.00 | C3: =SUBTOTAL(109,Wydatek21[Kwota]) -> 200.00 | D3: =SUBTOTAL(109,Wydatek31[Kwota]) -> 300.00 | E3: =SUBTOTAL(109,Wydatek41[Kwota]) -> 400.00 | F3: =SUBTOTAL(109,Wydatek51[Kwota]) -> 500.00
A4: Lut | B4: =SUBTOTAL(109,Wydatek12[Kwota]) -> 200.00 | C4: =SUBTOTAL(109,Wydatek22[Kwota]) -> 200.00 | D4: =SUBTOTAL(109,Wydatek32[Kwota]) -> 300.00 | E4: =SUBTOTAL(109,Wydatek42[Kwota]) -> 400.00 | F4: =SUBTOTAL(109,Wydatek52[Kwota]) -> 500.00
A5: Mar | B5: =SUBTOTAL(109,Wydatek13[Kwota]) -> 300.00 | C5: =SUBTOTAL(109,Wydatek23[Kwota]) -> 200.00 | D5: =SUBTOTAL(109,Wydatek33[Kwota]) -> 300.00 | E5: =SUBTOTAL(109,Wydatek43[Kwota]) -> 400.00 | F5: =SUBTOTAL(109,Wydatek53[Kwota]) -> 500.00
A6: Kwi | B6: =SUBTOTAL(109,Wydatek14[Kwota]) -> 400.00 | C6: =SUBTOTAL(109,Wydatek24[Kwota]) -> 200.00 | D6: =SUBTOTAL(109,Wydatek34[Kwota]) -> 300.00 | E6: =SUBTOTAL(109,Wydatek44[Kwota]) -> 400.00 | F6: =SUBTOTAL(109,Wydatek54[Kwota]) -> 500.00
A7: Maj | B7: =SUBTOTAL(109,Wydatek15[Kwota]) -> 500.00 | C7: =SUBTOTAL(109,Wydatek25[Kwota]) -> 200.00 | D7: =SUBTOTAL(109,Wydatek35[Kwota]) -> 300.00 | E7: =SUBTOTAL(109,Wydatek45[Kwota]) -> 400.00 | F7: =SUBTOTAL(109,Wydatek55[Kwota]) -> 500.00
A8: Cze | B8: =SUBTOTAL(109,Wydatek16[Kwota]) -> 600.00 | C8: =SUBTOTAL(109,Wydatek26[Kwota]) -> 200.00 | D8: =SUBTOTAL(109,Wydatek36[Kwota]) -> 300.00 | E8: =SUBTOTAL(109,Wydatek46[Kwota]) -> 400.00 | F8: =SUBTOTAL(109,Wydatek56[Kwota]) -> 500.00
A9: Lip | B9: =SUBTOTAL(109,Wydatek17[Kwota]) -> 700.00 | C9: =SUBTOTAL(109,Wydatek27[Kwota]) -> 200.00 | D9: =SUBTOTAL(109,Wydatek37[Kwota]) -> 300.00 | E9: =SUBTOTAL(109,Wydatek47[Kwota]) -> 400.00 | F9: =SUBTOTAL(109,Wydatek57[Kwota]) -> 500.00
A10: Sie | B10: =SUBTOTAL(109,Wydatek18[Kwota]) -> 800.00 | C10: =SUBTOTAL(109,Wydatek28[Kwota]) -> 200.00 | D10: =SUBTOTAL(109,Wydatek38[Kwota]) -> 300.00 | E10: =SUBTOTAL(109,Wydatek48[Kwota]) -> 400.00 | F10: =SUBTOTAL(109,Wydatek58[Kwota]) -> 500.00
A11: Wrz | B11: =SUBTOTAL(109,Wydatek19[Kwota]) -> 900.00 | C11: =SUBTOTAL(109,Wydatek29[Kwota]) -> 200.00 | D11: =SUBTOTAL(109,Wydatek39[Kwota]) -> 300.00 | E11: =SUBTOTAL(109,Wydatek49[Kwota]) -> 400.00 | F11: =SUBTOTAL(109,Wydatek59[Kwota]) -> 500.00
A12: Paź | B12: =SUBTOTAL(109,Wydatek110[Kwota]) -> 1,000.00 | C12: =SUBTOTAL(109,Wydatek210[Kwota]) -> 200.00 | D12: =SUBTOTAL(109,Wydatek310[Kwota]) -> 300.00 | E12: =SUBTOTAL(109,Wydatek410[Kwota]) -> 400.00 | F12: =SUBTOTAL(109,Wydatek510[Kwota]) -> 500.00
A13: Lis | B13: =SUBTOTAL(109,Wydatek111[Kwota]) -> 1,100.00 | C13: =SUBTOTAL(109,Wydatek211[Kwota]) -> 200.00 | D13: =SUBTOTAL(109,Wydatek311[Kwota]) -> 300.00 | E13: =SUBTOTAL(109,Wydatek411[Kwota]) -> 400.00 | F13: =SUBTOTAL(109,Wydatek511[Kwota]) -> 500.00
A14: Gru | B14: =SUBTOTAL(109,Wydatek112[Kwota]) -> 1,200.00 | C14: =SUBTOTAL(109,Wydatek212[Kwota]) -> 200.00 | D14: =SUBTOTAL(109,Wydatek312[Kwota]) -> 300.00 | E14: =SUBTOTAL(109,Wydatek412[Kwota]) -> 400.00 | F14: =SUBTOTAL(109,Wydatek512[Kwota]) -> 500.00
A15: Razem | B15: =SUM(B3:B14) -> 7,800.00 | C15: =SUM(C3:C14) -> 2,400.00 | D15: =SUM(D3:D14) -> 3,600.00 | E15: =SUM(E3:E14) -> 4,800.00 | F15: =SUM(F3:F14) -> 6,000.00
A16: Trendy

Sheet Sty
A1: Wydatki w styczniu
C3: RAZEM | D3: =SUM(D10,D17,D24,D30,D36) -> 1,500.00 zł
A4: Wydatek 1
A5: Data | B5: Nr ZZ | C5: Dostawca/opis | D5: Kwota
A6: 2010-01-08 | C6: Przykład 1 | D6: 100.00
A10: Suma częściowa | D10: =SUBTOTAL(109,Wydatek11[Kwota]) -> 100.00
A11: x
A12: Wydatek 2
A13: Data | B13: Nr ZZ | C13: Opis | D13: Kwota
A14: 2010-01-04 | C14: Przykład 2 | D14: 200.00
A17: Suma częściowa | D17: =SUBTOTAL(109,Wydatek21[Kwota]) -> 200.00
A18: x
A19: Wydatek 3
A20: Data | B20: Nr ZZ | C20: Dostawca/opis | D20: Kwota
A21: 2010-01-02 | C21: Przykład 3 | D21: 300.00
A24: Suma częściowa | D24: =SUBTOTAL(109,Wydatek31[Kwota]) -> 300.00
A25: x
A26: Wydatek 4
A27: Data | B27: Nr ZZ | C27: Dostawca/opis | D27: Kwota
A28: 2010-01-10 | C28: Przykład 4 | D28: 400.00
A30: Suma częściowa | D30: =SUBTOTAL(109,Wydatek41[Kwota]) -> 400.00
A31: s
A32: Wydatek 5
A33: Data | B33: Nr ZZ | C33: Dostawca/opis | D33: Kwota
A34: 2010-01-25 | C34: Przykład 5 | D34: 500.00
A36: Suma częściowa | D36: =SUBTOTAL(109,Wydatek51[Kwota]) -> 500.00

Sheet Lut
A1: Wydatki w lutym
C3: RAZEM | D3: =SUM(D10,D17,D24,D30,D36) -> 1,600.00 zł
A4: Wydatek 1
A5: Data | B5: Nr ZZ | C5: Dostawca/opis | D5: Kwota
A6: 2010-02-08 | C6: Przykład 1 | D6: 200.00
A10: Suma częściowa | D10: =SUBTOTAL(109,Wydatek12[Kwota]) -> 200.00
A11: x
A12: Wydatek 2
A13: Data | B13: Nr ZZ | C13: Opis | D13: Kwota
A14: 2010-02-04 | C14: Przykład 2 | D14: 200.00
A17: Suma częściowa | D17: =SUBTOTAL(109,Wydatek22[Kwota]) -> 200.00
A18: x
A19: Wydatek 3
A20: Data | B20: Nr ZZ | C20: Dostawca/opis | D20: Kwota
A21: 2010-02-02 | C21: Przykład 3 | D21: 300.00
A24: Suma częściowa | D24: =SUBTOTAL(109,Wydatek32[Kwota]) -> 300.00
A25: x
A26: Wydatek 4
A27: Data | B27: Nr ZZ | C27: Dostawca/opis | D27: Kwota
A28: 2010-02-10 | C28: Przykład 4 | D28: 400.00
A30: Suma częściowa | D30: =SUBTOTAL(109,Wydatek42[Kwota]) -> 400.00
A31: s
A32: Wydatek 5
A33: Data | B33: Nr ZZ | C33: Dostawca/opis | D33: Kwota
A34: 2010-02-25 | C34: Przykład 5 | D34: 500.00
A36: Suma częściowa | D36: =SUBTOTAL(109,Wydatek52[Kwota]) -> 500.00

Sheet Mar
A1: Wydatki w marcu
C3: RAZEM | D3: =SUM(D10,D17,D24,D30,D36) -> 1,700.00 zł
A4: Wydatek 1
A5: Data | B5: Nr ZZ | C5: Dostawca/opis | D5: Kwota
A6: 2010-03-08 | C6: Przykład 1 | D6: 300.00
A10: Suma częściowa | D10: =SUBTOTAL(109,Wydatek13[Kwota]) -> 300.00
A11: x
A12: Wydatek 2
A13: Data | B13: Nr ZZ | C13: Opis | D13: Kwota
A14: 2010-03-04 | C14: Przykład 2 | D14: 200.00
A17: Suma częściowa | D17: =SUBTOTAL(109,Wydatek23[Kwota]) -> 200.00
A18: x
A19: Wydatek 3
A20: Data | B20: Nr ZZ | C20: Dostawca/opis | D20: Kwota
A21: 2010-03-02 | C21: Przykład 3 | D21: 300.00
A24: Suma częściowa | D24: =SUBTOTAL(109,Wydatek33[Kwota]) -> 300.00
A25: x
A26: Wydatek 4
A27: Data | B27: Nr ZZ | C27: Dostawca/opis | D27: Kwota
A28: 2010-03-10 | C28: Przykład 4 | D28: 400.00
A30: Suma częściowa | D30: =SUBTOTAL(109,Wydatek43[Kwota]) -> 400.00
A31: s
A32: Wydatek 5
A33: Data | B33: Nr ZZ | C33: Dostawca/opis | D33: Kwota
A34: 2010-03-25 | C34: Przykład 5 | D34: 500.00
A36: Suma częściowa | D36: =SUBTOTAL(109,Wydatek53[Kwota]) -> 500.00

Sheet Kwi
A1: Wydatki w kwietniu
C3: RAZEM | D3: =SUM(D10,D17,D24,D30,D36) -> 1,800.00 zł
A4: Wydatek 1
A5: Data | B5: Nr ZZ | C5: Dostawca/opis | D5: Kwota
A6: 2010-04-08 | C6: Przykład 1 | D6: 400.00
A10: Suma częściowa | D10: =SUBTOTAL(109,Wydatek14[Kwota]) -> 400.00
A11: x
A12: Wydatek 2
A13: Data | B13: Nr ZZ | C13: Opis | D13: Kwota
A14: 2010-04-04 | C14: Przykład 2 | D14: 200.00
A17: Suma częściowa | D17: =SUBTOTAL(109,Wydatek24[Kwota]) -> 200.00
A18: x
A19: Wydatek 3
A20: Data | B20: Nr ZZ | C20: Dostawca/opis | D20: Kwota
A21: 2010-04-02 | C21: Przykład 3 | D21: 300.00
A24: Suma częściowa | D24: =SUBTOTAL(109,Wydatek34[Kwota]) -> 300.00
A25: x
A26: Wydatek 4
A27: Data | B27: Nr ZZ | C27: Dostawca/opis | D27: Kwota
A28: 2010-04-10 | C28: Przykład 4 | D28: 400.00
A30: Suma częściowa | D30: =SUBTOTAL(109,Wydatek44[Kwota]) -> 400.00
A31: s
A32: Wydatek 5
A33: Data | B33: Nr ZZ | C33: Dostawca/opis | D33: Kwota
A34: 2010-04-25 | C34: Przykład 5 | D34: 500.00
A36: Suma częściowa | D36: =SUBTOTAL(109,Wydatek54[Kwota]) -> 500.00

Sheet Maj
A1: Wydatki w maju
C3: RAZEM | D3: =SUM(D10,D17,D24,D30,D36) -> 1,900.00 zł
A4: Wydatek 1
A5: Data | B5: Nr ZZ | C5: Dostawca/opis | D5: Kwota
A6: 2010-05-08 | C6: Przykład 1 | D6: 500.00
A10: Suma częściowa | D10: =SUBTOTAL(109,Wydatek15[Kwota]) -> 500.00
A11: x
A12: Wydatek 2
A13: Data | B13: Nr ZZ | C13: Opis | D13: Kwota
A14: 2010-05-04 | C14: Przykład 2 | D14: 200.00
A17: Suma częściowa | D17: =SUBTOTAL(109,Wydatek25[Kwota]) -> 200.00
A18: x
A19: Wydatek 3
A20: Data | B20: Nr ZZ | C20: Dostawca/opis | D20: Kwota
A21: 2010-05-02 | C21: Przykład 3 | D21: 300.00
A24: Suma częściowa | D24: =SUBTOTAL(109,Wydatek35[Kwota]) -> 300.00
A25: x
A26: Wydatek 4
A27: Data | B27: Nr ZZ | C27: Dostawca/opis | D27: Kwota
A28: 2010-05-10 | C28: Przykład 4 | D28: 400.00
A30: Suma częściowa | D30: =SUBTOTAL(109,Wydatek45[Kwota]) -> 400.00
A31: s
A32: Wydatek 5
A33: Data | B33: Nr ZZ | C33: Dostawca/opis | D33: Kwota
A34: 2010-05-25 | C34: Przykład 5 | D34: 500.00
A36: Suma częściowa | D36: =SUBTOTAL(109,Wydatek55[Kwota]) -> 500.00

Sheet Cze
A1: Wydatki w czerwcu
C3: RAZEM | D3: =SUM(D10,D17,D24,D30,D36) -> 2,000.00 zł
A4: Wydatek 1
A5: Data | B5: Nr ZZ | C5: Dostawca/opis | D5: Kwota
A6: 2010-06-08 | C6: Przykład 1 | D6: 600.00
A10: Suma częściowa | D10: =SUBTOTAL(109,Wydatek16[Kwota]) -> 600.00
A11: x
A12: Wydatek 2
A13: Data | B13: Nr ZZ | C13: Opis | D13: Kwota
A14: 2010-06-04 | C14: Przykład 2 | D14: 200.00
A17: Suma częściowa | D17: =SUBTOTAL(109,Wydatek26[Kwota]) -> 200.00
A18: x
A19: Wydatek 3
A20: Data | B20: Nr ZZ | C20: Dostawca/opis | D20: Kwota
A21: 2010-06-02 | C21: Przykład 3 | D21: 300.00
A24: Suma częściowa | D24: =SUBTOTAL(109,Wydatek36[Kwota]) -> 300.00
A25: x
A26: Wydatek 4
A27: Data | B27: Nr ZZ | C27: Dostawca/opis | D27: Kwota
A28: 2010-06-10 | C28: Przykład 4 | D28: 400.00
A30: Suma częściowa | D30: =SUBTOTAL(109,Wydatek46[Kwota]) -> 400.00
A31: s
A32: Wydatek 5
A33: Data | B33: Nr ZZ | C33: Dostawca/opis | D33: Kwota
A34: 2010-06-25 | C34: Przykład 5 | D34: 500.00
A36: Suma częściowa | D36: =SUBTOTAL(109,Wydatek56[Kwota]) -> 500.00

Sheet Lip
A1: Wydatki w lipcu
C3: RAZEM | D3: =SUM(D10,D17,D24,D30,D36) -> 2,100.00 zł
A4: Wydatek 1
A5: Data | B5: Nr ZZ | C5: Dostawca/opis | D5: Kwota
A6: 2010-07-08 | C6: Przykład 1 | D6: 700.00
A10: Suma częściowa | D10: =SUBTOTAL(109,Wydatek17[Kwota]) -> 700.00
A11: x
A12: Wydatek 2
A13: Data | B13: Nr ZZ | C13: Opis | D13: Kwota
A14: 2010-07-04 | C14: Przykład 2 | D14: 200.00
A17: Suma częściowa | D17: =SUBTOTAL(109,Wydatek27[Kwota]) -> 200.00
A18: x
A19: Wydatek 3
A20: Data | B20: Nr ZZ | C20: Dostawca/opis | D20: Kwota
A21: 2010-07-02 | C21: Przykład 3 | D21: 300.00
A24: Suma częściowa | D24: =SUBTOTAL(109,Wydatek37[Kwota]) -> 300.00
A25: x
A26: Wydatek 4
A27: Data | B27: Nr ZZ | C27: Dostawca/opis | D27: Kwota
A28: 2010-07-10 | C28: Przykład 4 | D28: 400.00
A30: Suma częściowa | D30: =SUBTOTAL(109,Wydatek47[Kwota]) -> 400.00
A31: s
A32: Wydatek 5
A33: Data | B33: Nr ZZ | C33: Dostawca/opis | D33: Kwota
A34: 2010-07-25 | C34: Przykład 5 | D34: 500.00
A36: Suma częściowa | D36: =SUBTOTAL(109,Wydatek57[Kwota]) -> 500.00

Sheet Sie
A1: Wydatki w sierpniu
C3: RAZEM | D3: =SUM(D10,D17,D24,D30,D36) -> 2,200.00 zł
A4: Wydatek 1
A5: Data | B5: Nr ZZ | C5: Dostawca/opis | D5: Kwota
A6: 2010-08-08 | C6: Przykład 1 | D6: 800.00
A10: Suma częściowa | D10: =SUBTOTAL(109,Wydatek18[Kwota]) -> 800.00
A11: x
A12: Wydatek 2
A13: Data | B13: Nr ZZ | C13: Opis | D13: Kwota
A14: 2010-08-04 | C14: Przykład 2 | D14: 200.00
A17: Suma częściowa | D17: =SUBTOTAL(109,Wydatek28[Kwota]) -> 200.00
A18: x
A19: Wydatek 3
A20: Data | B20: Nr ZZ | C20: Dostawca/opis | D20: Kwota
A21: 2010-08-02 | C21: Przykład 3 | D21: 300.00
A24: Suma częściowa | D24: =SUBTOTAL(109,Wydatek38[Kwota]) -> 300.00
A25: x
A26: Wydatek 4
A27: Data | B27: Nr ZZ | C27: Dostawca/opis | D27: Kwota
A28: 2010-08-10 | C28: Przykład 4 | D28: 400.00
A30: Suma częściowa | D30: =SUBTOTAL(109,Wydatek48[Kwota]) -> 400.00
A31: s
A32: Wydatek 5
A33: Data | B33: Nr ZZ | C33: Dostawca/opis | D33: Kwota
A34: 2010-08-25 | C34: Przykład 5 | D34: 500.00
A36: Suma częściowa | D36: =SUBTOTAL(109,Wydatek58[Kwota]) -> 500.00

Sheet Wrz
A1: Wydatki we wrześniu
C3: RAZEM | D3: =SUM(D10,D17,D24,D30,D36) -> 2,300.00 zł
A4: Wydatek 1
A5: Data | B5: Nr ZZ | C5: Dostawca/opis | D5: Kwota
A6: 2010-09-08 | C6: Przykład 1 | D6: 900.00
A10: Suma częściowa | D10: =SUBTOTAL(109,Wydatek19[Kwota]) -> 900.00
A11: x
A12: Wydatek 2
A13: Data | B13: Nr ZZ | C13: Opis | D13: Kwota
A14: 2010-09-04 | C14: Przykład 2 | D14: 200.00
A17: Suma częściowa | D17: =SUBTOTAL(109,Wydatek29[Kwota]) -> 200.00
A18: x
A19: Wydatek 3
A20: Data | B20: Nr ZZ | C20: Dostawca/opis | D20: Kwota
A21: 2010-09-02 | C21: Przykład 3 | D21: 300.00
A24: Suma częściowa | D24: =SUBTOTAL(109,Wydatek39[Kwota]) -> 300.00
A25: x
A26: Wydatek 4
A27: Data | B27: Nr ZZ | C27: Dostawca/opis | D27: Kwota
A28: 2010-09-10 | C28: Przykład 4 | D28: 400.00
A30: Suma częściowa | D30: =SUBTOTAL(109,Wydatek49[Kwota]) -> 400.00
A31: s
A32: Wydatek 5
A33: Data | B33: Nr ZZ | C33: Dostawca/opis | D33: Kwota
A34: 2010-09-25 | C34: Przykład 5 | D34: 500.00
A36: Suma częściowa | D36: =SUBTOTAL(109,Wydatek59[Kwota]) -> 500.00

Sheet Paź
A1: Wydatki w październiku
C3: RAZEM | D3: =SUM(D10,D17,D24,D30,D36) -> 2,400.00 zł
A4: Wydatek 1
A5: Data | B5: Nr ZZ | C5: Dostawca/opis | D5: Kwota
A6: 2010-10-08 | C6: Przykład 1 | D6: 1,000.00
A10: Suma częściowa | D10: =SUBTOTAL(109,Wydatek110[Kwota]) -> 1,000.00
A11: x
A12: Wydatek 2
A13: Data | B13: Nr ZZ | C13: Opis | D13: Kwota
A14: 2010-10-04 | C14: Przykład 2 | D14: 200.00
A17: Suma częściowa | D17: =SUBTOTAL(109,Wydatek210[Kwota]) -> 200.00
A18: x
A19: Wydatek 3
A20: Data | B20: Nr ZZ | C20: Dostawca/opis | D20: Kwota
A21: 2010-10-02 | C21: Przykład 3 | D21: 300.00
A24: Suma częściowa | D24: =SUBTOTAL(109,Wydatek310[Kwota]) -> 300.00
A25: x
A26: Wydatek 4
A27: Data | B27: Nr ZZ | C27: Dostawca/opis | D27: Kwota
A28: 2010-10-10 | C28: Przykład 4 | D28: 400.00
A30: Suma częściowa | D30: =SUBTOTAL(109,Wydatek410[Kwota]) -> 400.00
A31: s
A32: Wydatek 5
A33: Data | B33: Nr ZZ | C33: Dostawca/opis | D33: Kwota
A34: 2010-10-25 | C34: Przykład 5 | D34: 500.00
A36: Suma częściowa | D36: =SUBTOTAL(109,Wydatek510[Kwota]) -> 500.00

Sheet Lis
A1: Wydatki w listopadzie
C3: RAZEM | D3: =SUM(D10,D17,D24,D30,D36) -> 2,500.00 zł
A4: Wydatek 1
A5: Data | B5: Nr ZZ | C5: Dostawca/opis | D5: Kwota
A6: 2010-11-08 | C6: Przykład 1 | D6: 1,100.00
A10: Suma częściowa | D10: =SUBTOTAL(109,Wydatek111[Kwota]) -> 1,100.00
A11: x
A12: Wydatek 2
A13: Data | B13: Nr ZZ | C13: Opis | D13: Kwota
A14: 2010-11-04 | C14: Przykład 2 | D14: 200.00
A17: Suma częściowa | D17: =SUBTOTAL(109,Wydatek211[Kwota]) -> 200.00
A18: x
A19: Wydatek 3
A20: Data | B20: Nr ZZ | C20: Dostawca/opis | D20: Kwota
A21: 2010-11-02 | C21: Przykład 3 | D21: 300.00
A24: Suma częściowa | D24: =SUBTOTAL(109,Wydatek311[Kwota]) -> 300.00
A25: x
A26: Wydatek 4
A27: Data | B27: Nr ZZ | C27: Dostawca/opis | D27: Kwota
A28: 2010-11-10 | C28: Przykład 4 | D28: 400.00
A30: Suma częściowa | D30: =SUBTOTAL(109,Wydatek411[Kwota]) -> 400.00
A31: s
A32: Wydatek 5
A33: Data | B33: Nr ZZ | C33: Dostawca/opis | D33: Kwota
A34: 2010-11-25 | C34: Przykład 5 | D34: 500.00
A36: Suma częściowa | D36: =SUBTOTAL(109,Wydatek511[Kwota]) -> 500.00

Sheet Gru
A1: Wydatki w grudniu
C3: RAZEM | D3: =SUM(D10,D17,D24,D30,D36) -> 2,600.00 zł
A4: Wydatek 1
A5: Data | B5: Nr ZZ | C5: Dostawca/opis | D5: Kwota
A6: 2010-12-08 | C6: Przykład 1 | D6: 1,200.00
A10: Suma częściowa | D10: =SUBTOTAL(109,Wydatek112[Kwota]) -> 1,200.00
A11: x
A12: Wydatek 2
A13: Data | B13: Nr ZZ | C13: Opis | D13: Kwota
A14: 2010-12-04 | C14: Przykład 2 | D14: 200.00
A17: Suma częściowa | D17: =SUBTOTAL(109,Wydatek212[Kwota]) -> 200.00
A18: x
A19: Wydatek 3
A20: Data | B20: Nr ZZ | C20: Dostawca/opis | D20: Kwota
A21: 2010-12-02 | C21: Przykład 3 | D21: 300.00
A24: Suma częściowa | D24: =SUBTOTAL(109,Wydatek312[Kwota]) -> 300.00
A25: x
A26: Wydatek 4
A27: Data | B27: Nr ZZ | C27: Dostawca/opis | D27: Kwota
A28: 2010-12-10 | C28: Przykład 4 | D28: 400.00
A30: Suma częściowa | D30: =SUBTOTAL(109,Wydatek412[Kwota]) -> 400.00
A31: s
A32: Wydatek 5
A33: Data | B33: Nr ZZ | C33: Dostawca/opis | D33: Kwota
A34: 2010-12-25 | C34: Przykład 5 | D34: 500.00
A36: Suma częściowa | D36: =SUBTOTAL(109,Wydatek512[Kwota]) -> 500.00
